[Event "Titled Tuesday Blitz April 19 Late 2022"]
[White "Kanyamarala, Trisha"]
[Black "Mekhitarian, Krikor Sevag"]
[WhiteFideId "45004722"]
[BlackFideId "2107660"]
[WhiteElo "2079"]
[BlackElo "2598"]
[Result "0-1"]
[Round "01"]
[TimeControl "180+1"]
[Date "2022.04.19"]
[WhiteClock "0:00:05"]
[BlackClock "0:00:13"]

1. c4 {[%clk 0:02:52]}  e6 {[%clk 0:02:55]} 2. Nc3 {[%clk 0:02:47]}  b6 {[%clk 0:02:56]} 3. g3 {[%clk 0:02:42]}  Bb7 {[%clk 0:02:55]} 4. Nf3 {[%clk 0:02:41]}  Bxf3 {[%clk 0:02:56]} 5. exf3 {[%clk 0:02:39]}  c5 {[%clk 0:02:56]} 6. Bg2 {[%clk 0:02:38]}  Nc6 {[%clk 0:02:56]} 7. O-O {[%clk 0:02:38]}  Rc8 {[%clk 0:02:55]} 8. f4 {[%clk 0:02:36]}  g6 {[%clk 0:02:56]} 9. d3 {[%clk 0:02:31]}  Bg7 {[%clk 0:02:56]} 10. Be3 {[%clk 0:02:28]}  Nge7 {[%clk 0:02:56]} 11. Nb5 {[%clk 0:02:12]}  d5 {[%clk 0:02:47]} 12. cxd5 {[%clk 0:02:08]}  exd5 {[%clk 0:02:48]} 13. d4 {[%clk 0:02:04]}  a6 {[%clk 0:02:46]} 14. Na3 {[%clk 0:02:00]}  cxd4 {[%clk 0:02:04]} 15. Bd2 {[%clk 0:01:54]}  O-O {[%clk 0:02:03]} 16. Rb1 {[%clk 0:01:47]}  b5 {[%clk 0:02:00]} 17. Nc2 {[%clk 0:01:47]}  Qd6 {[%clk 0:01:59]} 18. a3 {[%clk 0:01:42]}  Rfe8 {[%clk 0:01:57]} 19. Nb4 {[%clk 0:01:41]}  Nxb4 {[%clk 0:01:38]} 20. Bxb4 {[%clk 0:01:40]}  Qd7 {[%clk 0:01:38]} 21. Qd3 {[%clk 0:01:32]}  Nc6 {[%clk 0:01:19]} 22. Bc5 {[%clk 0:01:30]}  h5 {[%clk 0:00:56]} 23. b4 {[%clk 0:01:29]}  Ne7 {[%clk 0:00:52]} 24. Qb3 {[%clk 0:01:25]}  Red8 {[%clk 0:00:48]} 25. Rfe1 {[%clk 0:01:20]}  Nf5 {[%clk 0:00:48]} 26. Rbd1 {[%clk 0:01:15]}  Kh7 {[%clk 0:00:46]} 27. Bh3 {[%clk 0:01:10]}  Re8 {[%clk 0:00:44]} 28. Bg2 {[%clk 0:01:01]}  Rxe1+ {[%clk 0:00:39]} 29. Rxe1 {[%clk 0:01:01]}  Rd8 {[%clk 0:00:40]} 30. Bh3 {[%clk 0:00:56]}  Bf6 {[%clk 0:00:32]} 31. Qd3 {[%clk 0:00:50]}  Kg7 {[%clk 0:00:31]} 32. Rd1 {[%clk 0:00:35]}  Re8 {[%clk 0:00:28]} 33. Bxd4 {[%clk 0:00:19]}  Bxd4 {[%clk 0:00:25]} 34. Qxd4+ {[%clk 0:00:18]}  Nxd4 {[%clk 0:00:20]} 35. Bxd7 {[%clk 0:00:18]}  Re7 {[%clk 0:00:11]} 36. Bc8 {[%clk 0:00:17]}  Ne2+ {[%clk 0:00:08]} 37. Kf1 {[%clk 0:00:17]}  Nc3 {[%clk 0:00:09]} 38. Rd3 {[%clk 0:00:14]}  Rc7 {[%clk 0:00:08]} 39. Bxa6 {[%clk 0:00:14]}  Kf6 {[%clk 0:00:09]} 40. Bb7 {[%clk 0:00:10]}  Ke6 {[%clk 0:00:07]} 41. Ba6 {[%clk 0:00:05]}  Kd6 {[%clk 0:00:07]} 42. Ke1 {[%clk 0:00:05]}  Rc4 {[%clk 0:00:06]} 43. Kd2 {[%clk 0:00:05]}  Ne4+ {[%clk 0:00:06]} 44. Ke3 {[%clk 0:00:05]}  Kc6 {[%clk 0:00:05]} 45. f3 {[%clk 0:00:04]}  Nd6 {[%clk 0:00:05]} 46. g4 {[%clk 0:00:03]}  h4 {[%clk 0:00:05]} 47. f5 {[%clk 0:00:03]}  gxf5 {[%clk 0:00:05]} 48. gxf5 {[%clk 0:00:03]}  Nxf5+ {[%clk 0:00:05]} 49. Kf2 {[%clk 0:00:04]}  Nd6 {[%clk 0:00:06]} 50. Rd2 {[%clk 0:00:04]}  Rc3 {[%clk 0:00:05]} 51. a4 {[%clk 0:00:04]}  bxa4 {[%clk 0:00:05]} 52. b5+ {[%clk 0:00:04]}  Nxb5 {[%clk 0:00:06]} 53. Bxb5+ {[%clk 0:00:04]}  Kxb5 {[%clk 0:00:07]} 54. Rxd5+ {[%clk 0:00:05]}  Rc5 {[%clk 0:00:07]} 55. Rd8 {[%clk 0:00:05]}  Kb4 {[%clk 0:00:06]} 56. Rb8+ {[%clk 0:00:04]}  Rb5 {[%clk 0:00:06]} 57. Rh8 {[%clk 0:00:04]}  a3 {[%clk 0:00:06]} 58. Rxh4+ {[%clk 0:00:04]}  Kb3 {[%clk 0:00:07]} 59. Rh8 {[%clk 0:00:04]}  a2 {[%clk 0:00:07]} 60. Ra8 {[%clk 0:00:04]}  Rb4 {[%clk 0:00:07]} 61. h4 {[%clk 0:00:03]}  Ra4 {[%clk 0:00:08]} 62. Rb8+ {[%clk 0:00:03]}  Kc4 {[%clk 0:00:06]} 63. Rc8+ {[%clk 0:00:03]}  Kd5 {[%clk 0:00:06]} 64. Rc1 {[%clk 0:00:03]}  a1=Q {[%clk 0:00:06]} 65. Rxa1 {[%clk 0:00:04]}  Rxa1 {[%clk 0:00:07]} 66. Kg3 {[%clk 0:00:04]}  Ke6 {[%clk 0:00:08]} 67. Kg4 {[%clk 0:00:04]}  Kf6 {[%clk 0:00:09]} 68. Kh5 {[%clk 0:00:05]}  Kg7 {[%clk 0:00:10]} 69. Kg5 {[%clk 0:00:05]}  Ra5+ {[%clk 0:00:11]} 70. Kg4 {[%clk 0:00:05]}  Kg6 {[%clk 0:00:11]} 71. f4 {[%clk 0:00:06]}  f5+ {[%clk 0:00:12]} 72. Kg3 {[%clk 0:00:05]}  Ra3+ {[%clk 0:00:12]} 73. Kg2 {[%clk 0:00:05]}  Kh5 {[%clk 0:00:13]} 0-1


[Site "https://www.chess.com"]

[Event "Titled Tuesday Blitz April 19 Late 2022"]
[White "Karwowski, Kacper"]
[Black "Bazeev, German"]
[WhiteFideId "1126032"]
[BlackFideId "24119350"]
[WhiteElo "2261"]
[BlackElo "2493"]
[Result "0-1"]
[Round "01"]
[TimeControl "180+1"]
[Date "2022.04.19"]
[WhiteClock "0:00:01"]
[BlackClock "0:02:14"]

1. e4 {[%clk 0:03:00]}  c6 {[%clk 0:02:59]} 2. d4 {[%clk 0:02:59]}  d5 {[%clk 0:03:00]} 3. exd5 {[%clk 0:03:00]}  cxd5 {[%clk 0:03:00]} 4. Bd3 {[%clk 0:03:00]}  Nc6 {[%clk 0:03:00]} 5. c3 {[%clk 0:03:00]}  g6 {[%clk 0:03:00]} 6. Bf4 {[%clk 0:02:59]}  Nf6 {[%clk 0:03:00]} 7. Nd2 {[%clk 0:02:57]}  Bf5 {[%clk 0:03:01]} 8. Be2 {[%clk 0:02:56]}  h5 {[%clk 0:02:59]} 9. Ngf3 {[%clk 0:02:56]}  e6 {[%clk 0:03:00]} 10. h3 {[%clk 0:02:55]}  Bd6 {[%clk 0:03:00]} 11. Bxd6 {[%clk 0:02:54]}  Qxd6 {[%clk 0:03:01]} 12. O-O {[%clk 0:02:55]}  Rg8 {[%clk 0:02:57]} 13. Ng5 {[%clk 0:02:39]}  Qf4 {[%clk 0:02:53]} 14. Ndf3 {[%clk 0:02:36]}  Ne4 {[%clk 0:02:53]} 15. Qc1 {[%clk 0:02:30]}  Qxc1 {[%clk 0:02:53]} 16. Raxc1 {[%clk 0:02:29]}  Nxg5 {[%clk 0:02:54]} 17. Nxg5 {[%clk 0:02:29]}  f6 {[%clk 0:02:55]} 18. Nf3 {[%clk 0:02:27]}  g5 {[%clk 0:02:55]} 19. h4 {[%clk 0:02:12]}  g4 {[%clk 0:02:53]} 20. Nd2 {[%clk 0:02:12]}  O-O-O {[%clk 0:02:46]} 21. Bb5 {[%clk 0:01:23]}  Ne7 {[%clk 0:02:41]} 22. g3 {[%clk 0:01:20]}  a6 {[%clk 0:02:41]} 23. Ba4 {[%clk 0:01:17]}  Be4 {[%clk 0:02:30]} 24. Rfe1 {[%clk 0:01:10]}  f5 {[%clk 0:02:30]} 25. c4 {[%clk 0:00:40]}  Kb8 {[%clk 0:02:26]} 26. c5 {[%clk 0:00:27]}  e5 {[%clk 0:02:23]} 27. Nb3 {[%clk 0:00:06]}  Rc8 {[%clk 0:02:16]} 28. dxe5 {[%clk 0:00:04]}  Ng6 {[%clk 0:02:16]} 29. Nd4 {[%clk 0:00:03]}  Nxe5 {[%clk 0:02:16]} 30. Bc2 {[%clk 0:00:02]}  Rxc5 {[%clk 0:02:13]} 31. Bxe4 {[%clk 0:00:03]}  Rxc1 {[%clk 0:02:14]} 32. Rxc1 {[%clk 0:00:02]}  fxe4 {[%clk 0:02:15]} 33. Ne6 {[%clk 0:00:01]}  Nf3+ {[%clk 0:02:12]} 34. Kg2 {[%clk 0:00:01]}  d4 {[%clk 0:02:13]} 35. Nf4 {[%clk 0:00:01]}  d3 {[%clk 0:02:12]} 36. Nxh5 {[%clk 0:00:01]}  d2 {[%clk 0:02:13]} 37. Rd1 {[%clk 0:00:01]}  Rc8 {[%clk 0:02:14]} 38. Nf4 {[%clk 0:00:01]}  Rc1 {[%clk 0:02:14]} 0-1


[Site "https://www.chess.com"]

[Event "Titled Tuesday Blitz April 19 Late 2022"]
[White "Kohler, Aran"]
[Black "Sowa, Ryan"]
[WhiteFideId "1002856"]
[BlackFideId "30901693"]
[WhiteElo "2314"]
[BlackElo "2613"]
[Result "0-1"]
[Round "01"]
[TimeControl "180+1"]
[Date "2022.04.19"]
[WhiteClock "0:00:40"]
[BlackClock "0:00:47"]

1. d4 {[%clk 0:02:57]}  Nf6 {[%clk 0:02:59]} 2. Nf3 {[%clk 0:02:56]}  d5 {[%clk 0:02:59]} 3. Bg5 {[%clk 0:02:55]}  Ne4 {[%clk 0:02:33]} 4. Bh4 {[%clk 0:02:54]}  c5 {[%clk 0:02:06]} 5. e3 {[%clk 0:02:52]}  Nc6 {[%clk 0:02:05]} 6. c3 {[%clk 0:02:50]}  Bf5 {[%clk 0:02:05]} 7. Nbd2 {[%clk 0:02:48]}  Qb6 {[%clk 0:02:05]} 8. Qb3 {[%clk 0:02:41]}  c4 {[%clk 0:02:05]} 9. Qxb6 {[%clk 0:02:40]}  axb6 {[%clk 0:02:06]} 10. a3 {[%clk 0:02:40]}  h6 {[%clk 0:02:05]} 11. Nxe4 {[%clk 0:02:32]}  Bxe4 {[%clk 0:02:04]} 12. Rc1 {[%clk 0:02:27]}  e6 {[%clk 0:02:04]} 13. Nd2 {[%clk 0:02:26]}  Bg6 {[%clk 0:02:03]} 14. Be2 {[%clk 0:02:23]}  b5 {[%clk 0:02:04]} 15. O-O {[%clk 0:02:21]}  Nb8 {[%clk 0:02:05]} 16. f3 {[%clk 0:02:15]}  Nd7 {[%clk 0:02:04]} 17. e4 {[%clk 0:02:15]}  Nb6 {[%clk 0:02:05]} 18. Rfe1 {[%clk 0:02:02]}  Kd7 {[%clk 0:02:04]} 19. Bg3 {[%clk 0:01:55]}  Be7 {[%clk 0:02:01]} 20. Bd1 {[%clk 0:01:53]}  Na4 {[%clk 0:02:01]} 21. Bxa4 {[%clk 0:01:51]}  bxa4 {[%clk 0:02:01]} 22. Re2 {[%clk 0:01:42]}  Ra5 {[%clk 0:02:00]} 23. Rce1 {[%clk 0:01:41]}  Bd8 {[%clk 0:01:48]} 24. exd5 {[%clk 0:01:37]}  exd5 {[%clk 0:01:48]} 25. Nf1 {[%clk 0:01:28]}  Rb5 {[%clk 0:01:46]} 26. Be5 {[%clk 0:01:23]}  f6 {[%clk 0:01:45]} 27. Bf4 {[%clk 0:01:22]}  Bd3 {[%clk 0:01:40]} 28. Rf2 {[%clk 0:01:22]}  Be7 {[%clk 0:01:32]} 29. Bc1 {[%clk 0:01:22]}  Bd6 {[%clk 0:01:29]} 30. g3 {[%clk 0:01:15]}  h5 {[%clk 0:01:26]} 31. h4 {[%clk 0:01:13]}  Ra5 {[%clk 0:01:26]} 32. Kg2 {[%clk 0:01:11]}  Bg6 {[%clk 0:01:24]} 33. Rfe2 {[%clk 0:01:09]}  Raa8 {[%clk 0:01:22]} 34. Ne3 {[%clk 0:01:07]}  Kc6 {[%clk 0:01:20]} 35. Kf2 {[%clk 0:01:04]}  Bd3 {[%clk 0:01:16]} 36. Rd2 {[%clk 0:01:03]}  g5 {[%clk 0:01:10]} 37. hxg5 {[%clk 0:01:02]}  fxg5 {[%clk 0:01:11]} 38. Ng2 {[%clk 0:01:02]}  h4 {[%clk 0:01:11]} 39. gxh4 {[%clk 0:00:57]}  gxh4 {[%clk 0:01:11]} 40. Re6 {[%clk 0:00:54]}  h3 {[%clk 0:01:12]} 41. Rxd3 {[%clk 0:00:49]}  cxd3 {[%clk 0:00:48]} 42. Bf4 {[%clk 0:00:48]}  Rad8 {[%clk 0:00:48]} 43. Ne3 {[%clk 0:00:40]}  h2 {[%clk 0:00:47]} 0-1


[Site "https://www.chess.com"]

[Event "Titled Tuesday Blitz April 19 Late 2022"]
[White "Kosteniuk, Alexandra"]
[Black "Sarkar, Justin"]
[WhiteFideId "4128125"]
[BlackFideId "2010011"]
[WhiteElo "2469"]
[BlackElo "2038"]
[Result "1-0"]
[Round "01"]
[TimeControl "180+1"]
[Date "2022.04.19"]
[WhiteClock "0:01:09"]
[BlackClock "0:00:01"]

1. e4 {[%clk 0:02:59]}  c5 {[%clk 0:02:57]} 2. Nf3 {[%clk 0:02:58]}  Nc6 {[%clk 0:02:53]} 3. Bb5 {[%clk 0:02:56]}  Qc7 {[%clk 0:02:47]} 4. O-O {[%clk 0:02:53]}  Nf6 {[%clk 0:02:42]} 5. Re1 {[%clk 0:02:49]}  e6 {[%clk 0:02:36]} 6. e5 {[%clk 0:02:45]}  Nd5 {[%clk 0:02:28]} 7. c4 {[%clk 0:02:41]}  Nb6 {[%clk 0:02:22]} 8. Bxc6 {[%clk 0:02:24]}  Qxc6 {[%clk 0:02:13]} 9. d4 {[%clk 0:02:24]}  Nxc4 {[%clk 0:02:07]} 10. Nc3 {[%clk 0:02:23]}  Nb6 {[%clk 0:01:48]} 11. Bg5 {[%clk 0:02:17]}  d5 {[%clk 0:01:32]} 12. exd6 {[%clk 0:02:15]}  Qxd6 {[%clk 0:00:59]} 13. Ne4 {[%clk 0:01:54]}  Qd5 {[%clk 0:00:41]} 14. dxc5 {[%clk 0:01:53]}  Qxd1 {[%clk 0:00:28]} 15. Raxd1 {[%clk 0:01:52]}  Nd7 {[%clk 0:00:28]} 16. b4 {[%clk 0:01:40]}  f6 {[%clk 0:00:20]} 17. Be3 {[%clk 0:01:25]}  Be7 {[%clk 0:00:15]} 18. Nd6+ {[%clk 0:01:23]}  Bxd6 {[%clk 0:00:11]} 19. Rxd6 {[%clk 0:01:21]}  Kf7 {[%clk 0:00:08]} 20. b5 {[%clk 0:01:20]}  e5 {[%clk 0:00:03]} 21. a4 {[%clk 0:01:14]}  Nf8 {[%clk 0:00:03]} 22. c6 {[%clk 0:01:10]}  bxc6 {[%clk 0:00:02]} 23. Rxc6 {[%clk 0:01:11]}  Bg4 {[%clk 0:00:02]} 24. Rc7+ {[%clk 0:01:10]}  Kg6 {[%clk 0:00:01]} 25. Rxa7 {[%clk 0:01:09]} 1-0


[Site "https://www.chess.com"]

[Event "Titled Tuesday Blitz April 19 Late 2022"]
[White "Kozak, Adam"]
[Black "Jessel, Stephen"]
[WhiteFideId "753246"]
[BlackFideId "628859"]
[WhiteElo "2459"]
[BlackElo "2268"]
[Result "1-0"]
[Round "01"]
[TimeControl "180+1"]
[Date "2022.04.19"]
[WhiteClock "0:00:04"]
[BlackClock "0:00:05"]

1. Nf3 {[%clk 0:02:11]}  d5 {[%clk 0:02:57]} 2. b3 {[%clk 0:02:11]}  Nf6 {[%clk 0:02:54]} 3. Bb2 {[%clk 0:02:12]}  e6 {[%clk 0:02:55]} 4. g3 {[%clk 0:02:11]}  Be7 {[%clk 0:02:54]} 5. Bg2 {[%clk 0:02:11]}  O-O {[%clk 0:02:54]} 6. O-O {[%clk 0:02:11]}  c5 {[%clk 0:02:54]} 7. Ne5 {[%clk 0:02:11]}  Nfd7 {[%clk 0:02:48]} 8. Nxd7 {[%clk 0:02:07]}  Bxd7 {[%clk 0:02:46]} 9. c4 {[%clk 0:02:06]}  Bc6 {[%clk 0:02:43]} 10. cxd5 {[%clk 0:02:04]}  Bxd5 {[%clk 0:02:43]} 11. e4 {[%clk 0:02:01]}  Bc6 {[%clk 0:02:43]} 12. d4 {[%clk 0:01:58]}  Bf6 {[%clk 0:02:27]} 13. e5 {[%clk 0:01:50]}  Be7 {[%clk 0:02:26]} 14. d5 {[%clk 0:01:48]}  exd5 {[%clk 0:02:13]} 15. Nd2 {[%clk 0:01:44]}  Re8 {[%clk 0:01:58]} 16. f4 {[%clk 0:01:44]}  Bf8 {[%clk 0:01:58]} 17. Qg4 {[%clk 0:01:40]}  g6 {[%clk 0:01:19]} 18. Rad1 {[%clk 0:01:34]}  Nd7 {[%clk 0:01:17]} 19. Nc4 {[%clk 0:01:27]}  dxc4 {[%clk 0:00:57]} 20. Bxc6 {[%clk 0:01:27]}  bxc6 {[%clk 0:00:57]} 21. Rxd7 {[%clk 0:01:27]}  Qc8 {[%clk 0:00:41]} 22. bxc4 {[%clk 0:01:26]}  Rb8 {[%clk 0:00:34]} 23. Bc3 {[%clk 0:01:25]}  Re7 {[%clk 0:00:31]} 24. Rfd1 {[%clk 0:01:22]}  Rb7 {[%clk 0:00:31]} 25. e6 {[%clk 0:01:20]}  Rxe6 {[%clk 0:00:32]} 26. Rd8 {[%clk 0:00:55]}  Re1+ {[%clk 0:00:29]} 27. Rxe1 {[%clk 0:00:55]}  Qxg4 {[%clk 0:00:28]} 28. Ree8 {[%clk 0:00:54]}  f6 {[%clk 0:00:20]} 29. Rxf8+ {[%clk 0:00:37]}  Kg7 {[%clk 0:00:20]} 30. Bxf6+ {[%clk 0:00:16]}  Kh6 {[%clk 0:00:21]} 31. Rfe8 {[%clk 0:00:13]}  Qf3 {[%clk 0:00:17]} 32. Re1 {[%clk 0:00:09]}  Kh5 {[%clk 0:00:12]} 33. Rd2 {[%clk 0:00:06]}  Kg4 {[%clk 0:00:09]} 34. Rf2 {[%clk 0:00:06]}  Qd3 {[%clk 0:00:09]} 35. Kg2 {[%clk 0:00:05]}  Rb1 {[%clk 0:00:09]} 36. Re5 {[%clk 0:00:04]}  g5 {[%clk 0:00:04]} 37. h3+ {[%clk 0:00:03]}  Kh5 {[%clk 0:00:04]} 38. Rxg5+ {[%clk 0:00:04]}  Kh6 {[%clk 0:00:05]} 39. Bg7# {[%clk 0:00:04]} 1-0


[Site "https://www.chess.com"]

[Event "Titled Tuesday Blitz April 19 Late 2022"]
[White "Koziorowicz, Michal"]
[Black "Fernandez Siles, Luis"]
[WhiteFideId "21809194"]
[BlackFideId "2209420"]
[WhiteElo "2235"]
[BlackElo "2212"]
[Result "0-1"]
[Round "01"]
[TimeControl "180+1"]
[Date "2022.04.19"]
[WhiteClock "0:02:17"]
[BlackClock "0:01:56"]

1. e4 {[%clk 0:02:56]}  e5 {[%clk 0:02:59]} 2. Nc3 {[%clk 0:02:57]}  Nf6 {[%clk 0:02:59]} 3. Bc4 {[%clk 0:02:57]}  Nc6 {[%clk 0:02:57]} 4. d3 {[%clk 0:02:56]}  Bb4 {[%clk 0:02:57]} 5. Ne2 {[%clk 0:02:52]}  d5 {[%clk 0:02:57]} 6. exd5 {[%clk 0:02:50]}  Nxd5 {[%clk 0:02:58]} 7. O-O {[%clk 0:02:51]}  Nxc3 {[%clk 0:02:56]} 8. Nxc3 {[%clk 0:02:52]}  Bxc3 {[%clk 0:02:50]} 9. bxc3 {[%clk 0:02:50]}  O-O {[%clk 0:02:49]} 10. Qh5 {[%clk 0:02:49]}  Qf6 {[%clk 0:02:45]} 11. Re1 {[%clk 0:02:47]}  Re8 {[%clk 0:02:37]} 12. Bg5 {[%clk 0:02:41]}  Qg6 {[%clk 0:02:37]} 13. Qh4 {[%clk 0:02:41]}  Be6 {[%clk 0:02:33]} 14. Bb3 {[%clk 0:02:40]}  a5 {[%clk 0:02:31]} 15. a4 {[%clk 0:02:39]}  Bxb3 {[%clk 0:02:29]} 16. cxb3 {[%clk 0:02:39]}  f6 {[%clk 0:02:27]} 17. Be3 {[%clk 0:02:37]}  Rad8 {[%clk 0:02:28]} 18. d4 {[%clk 0:02:36]}  Qc2 {[%clk 0:02:21]} 19. dxe5 {[%clk 0:02:32]}  Nxe5 {[%clk 0:02:19]} 20. Bd4 {[%clk 0:02:22]}  Qxb3 {[%clk 0:02:03]} 21. Bxe5 {[%clk 0:02:22]}  fxe5 {[%clk 0:02:00]} 22. Rxe5 {[%clk 0:02:20]}  Rd1+ {[%clk 0:01:57]} 23. Re1 {[%clk 0:02:17]}  Rexe1# {[%clk 0:01:56]} 0-1


[Site "https://www.chess.com"]

[Event "Titled Tuesday Blitz April 19 Late 2022"]
[White "Krishnakumar, Sriram"]
[Black "Wagner, Dennis"]
[WhiteFideId "30915856"]
[BlackFideId "24650684"]
[WhiteElo "2402"]
[BlackElo "2355"]
[Result "1-0"]
[Round "01"]
[TimeControl "180+1"]
[Date "2022.04.19"]
[WhiteClock "0:00:26"]
[BlackClock "0:00:07"]

1. e4 {[%clk 0:03:00]}  c5 {[%clk 0:02:58]} 2. Nf3 {[%clk 0:03:01]}  d6 {[%clk 0:02:57]} 3. Bb5+ {[%clk 0:03:00]}  Bd7 {[%clk 0:02:56]} 4. Bxd7+ {[%clk 0:02:59]}  Nxd7 {[%clk 0:02:55]} 5. O-O {[%clk 0:02:59]}  Ngf6 {[%clk 0:02:55]} 6. Qe2 {[%clk 0:02:58]}  e6 {[%clk 0:02:53]} 7. c3 {[%clk 0:02:58]}  Rc8 {[%clk 0:02:51]} 8. d4 {[%clk 0:02:56]}  cxd4 {[%clk 0:02:51]} 9. cxd4 {[%clk 0:02:57]}  d5 {[%clk 0:02:51]} 10. e5 {[%clk 0:02:55]}  Ng8 {[%clk 0:02:51]} 11. Nc3 {[%clk 0:02:40]}  Bb4 {[%clk 0:02:50]} 12. Nb5 {[%clk 0:02:31]}  a6 {[%clk 0:02:48]} 13. a3 {[%clk 0:02:24]}  Bf8 {[%clk 0:02:13]} 14. Nc3 {[%clk 0:02:19]}  h6 {[%clk 0:02:11]} 15. Bd2 {[%clk 0:02:08]}  Ne7 {[%clk 0:02:12]} 16. Rfc1 {[%clk 0:02:06]}  Nc6 {[%clk 0:02:12]} 17. b4 {[%clk 0:02:05]}  Be7 {[%clk 0:01:55]} 18. b5 {[%clk 0:02:02]}  axb5 {[%clk 0:01:53]} 19. Nxb5 {[%clk 0:02:03]}  O-O {[%clk 0:01:52]} 20. a4 {[%clk 0:01:54]}  Nb6 {[%clk 0:01:52]} 21. Be3 {[%clk 0:01:44]}  Ra8 {[%clk 0:01:52]} 22. Qc2 {[%clk 0:01:33]}  Nc4 {[%clk 0:01:52]} 23. Nd2 {[%clk 0:01:33]}  N6a5 {[%clk 0:01:47]} 24. Nxc4 {[%clk 0:01:24]}  Nxc4 {[%clk 0:01:48]} 25. Qb3 {[%clk 0:01:24]}  Qd7 {[%clk 0:01:43]} 26. Nc3 {[%clk 0:01:09]}  Ra7 {[%clk 0:01:34]} 27. Rab1 {[%clk 0:01:08]}  Rfa8 {[%clk 0:01:35]} 28. Qb5 {[%clk 0:01:08]}  Qd8 {[%clk 0:01:25]} 29. Bf4 {[%clk 0:00:58]}  b6 {[%clk 0:01:24]} 30. g3 {[%clk 0:00:57]}  Ra5 {[%clk 0:01:23]} 31. Qb3 {[%clk 0:00:56]}  Qd7 {[%clk 0:01:18]} 32. h4 {[%clk 0:00:56]}  h5 {[%clk 0:01:17]} 33. Qd1 {[%clk 0:00:55]}  g6 {[%clk 0:01:17]} 34. Rb5 {[%clk 0:00:53]}  Rxb5 {[%clk 0:01:11]} 35. axb5 {[%clk 0:00:54]}  Ra3 {[%clk 0:01:11]} 36. g4 {[%clk 0:00:53]}  hxg4 {[%clk 0:00:36]} 37. Qxg4 {[%clk 0:00:54]}  Bb4 {[%clk 0:00:36]} 38. Ne4 {[%clk 0:00:48]}  dxe4 {[%clk 0:00:26]} 39. Rxc4 {[%clk 0:00:48]}  Ra1+ {[%clk 0:00:26]} 40. Kh2 {[%clk 0:00:45]}  Kg7 {[%clk 0:00:16]} 41. Rxb4 {[%clk 0:00:42]}  Qc8 {[%clk 0:00:13]} 42. Qg5 {[%clk 0:00:37]}  Qc3 {[%clk 0:00:12]} 43. Bd2 {[%clk 0:00:34]}  Qf3 {[%clk 0:00:11]} 44. Qg2 {[%clk 0:00:33]}  Qd1 {[%clk 0:00:08]} 45. Be3 {[%clk 0:00:26]}  Qd3 {[%clk 0:00:06]} 46. Rb2 {[%clk 0:00:25]}  Ra8 {[%clk 0:00:05]} 47. Rd2 {[%clk 0:00:24]}  Qb1 {[%clk 0:00:05]} 48. Qg1 {[%clk 0:00:23]}  Qxb5 {[%clk 0:00:04]} 49. Rd1 {[%clk 0:00:22]}  Rh8 {[%clk 0:00:04]} 50. Qg3 {[%clk 0:00:21]}  Qe2 {[%clk 0:00:04]} 51. Rc1 {[%clk 0:00:21]}  b5 {[%clk 0:00:04]} 52. Rc7 {[%clk 0:00:21]}  b4 {[%clk 0:00:04]} 53. Qf4 {[%clk 0:00:21]}  Qf3 {[%clk 0:00:02]} 54. Qxf3 {[%clk 0:00:20]}  exf3 {[%clk 0:00:03]} 55. Kg3 {[%clk 0:00:20]}  Rb8 {[%clk 0:00:03]} 56. Rc2 {[%clk 0:00:20]}  b3 {[%clk 0:00:04]} 57. Rb2 {[%clk 0:00:21]}  Rb4 {[%clk 0:00:04]} 58. Kxf3 {[%clk 0:00:20]}  Kf8 {[%clk 0:00:05]} 59. Ke2 {[%clk 0:00:21]}  Ke7 {[%clk 0:00:04]} 60. Kd3 {[%clk 0:00:22]}  Rb8 {[%clk 0:00:04]} 61. Kc3 {[%clk 0:00:22]}  Kd7 {[%clk 0:00:04]} 62. Rxb3 {[%clk 0:00:23]}  Rc8+ {[%clk 0:00:05]} 63. Kd3 {[%clk 0:00:23]}  Rh8 {[%clk 0:00:06]} 64. Rb7+ {[%clk 0:00:23]}  Kc6 {[%clk 0:00:06]} 65. Rxf7 {[%clk 0:00:22]}  Rxh4 {[%clk 0:00:07]} 66. Rf6 {[%clk 0:00:23]}  Kd5 {[%clk 0:00:06]} 67. Rxg6 {[%clk 0:00:23]}  Rh1 {[%clk 0:00:06]} 68. Rg8 {[%clk 0:00:23]}  Rd1+ {[%clk 0:00:06]} 69. Ke2 {[%clk 0:00:23]}  Ra1 {[%clk 0:00:06]} 70. Rd8+ {[%clk 0:00:24]}  Ke4 {[%clk 0:00:06]} 71. f3+ {[%clk 0:00:24]}  Kf5 {[%clk 0:00:06]} 72. Rf8+ {[%clk 0:00:25]}  Kg6 {[%clk 0:00:07]} 73. Rf6+ {[%clk 0:00:25]}  Kh5 {[%clk 0:00:07]} 74. Rxe6 {[%clk 0:00:26]}  Rh1 {[%clk 0:00:07]} 75. Rh6# {[%clk 0:00:26]} 1-0


[Site "https://www.chess.com"]

[Event "Titled Tuesday Blitz April 19 Late 2022"]
[White "Kujawski, Adam"]
[Black "Yedidia, Daniel"]
[WhiteFideId "1100920"]
[BlackFideId "30905907"]
[WhiteElo "2053"]
[BlackElo "2615"]
[Result "0-1"]
[Round "01"]
[TimeControl "180+1"]
[Date "2022.04.19"]
[WhiteClock "0:00:08"]
[BlackClock "0:00:16"]

1. e4 {[%clk 0:03:00]}  e5 {[%clk 0:02:59]} 2. Nf3 {[%clk 0:03:00]}  Nc6 {[%clk 0:03:00]} 3. Bb5 {[%clk 0:02:59]}  a6 {[%clk 0:03:00]} 4. Ba4 {[%clk 0:03:00]}  Nf6 {[%clk 0:03:01]} 5. O-O {[%clk 0:02:59]}  Be7 {[%clk 0:03:00]} 6. Re1 {[%clk 0:02:59]}  b5 {[%clk 0:03:00]} 7. Bb3 {[%clk 0:03:00]}  O-O {[%clk 0:03:01]} 8. h3 {[%clk 0:03:00]}  d6 {[%clk 0:03:00]} 9. c3 {[%clk 0:03:00]}  Nb8 {[%clk 0:03:01]} 10. d4 {[%clk 0:02:59]}  Nbd7 {[%clk 0:03:02]} 11. Nbd2 {[%clk 0:02:58]}  Bb7 {[%clk 0:03:02]} 12. Bc2 {[%clk 0:02:57]}  c5 {[%clk 0:03:02]} 13. d5 {[%clk 0:02:47]}  c4 {[%clk 0:02:50]} 14. a4 {[%clk 0:02:45]}  Qc7 {[%clk 0:02:45]} 15. Nf1 {[%clk 0:02:45]}  Rfb8 {[%clk 0:02:44]} 16. Ng3 {[%clk 0:02:29]}  g6 {[%clk 0:02:44]} 17. Nh4 {[%clk 0:02:16]}  Bf8 {[%clk 0:02:31]} 18. f4 {[%clk 0:02:06]}  Bc8 {[%clk 0:02:21]} 19. f5 {[%clk 0:02:01]}  Bg7 {[%clk 0:02:14]} 20. a5 {[%clk 0:01:52]}  Nc5 {[%clk 0:02:08]} 21. Rf1 {[%clk 0:01:49]}  b4 {[%clk 0:01:50]} 22. fxg6 {[%clk 0:01:12]}  fxg6 {[%clk 0:01:44]} 23. Bg5 {[%clk 0:01:12]}  Qe7 {[%clk 0:01:23]} 24. Qf3 {[%clk 0:00:48]}  Ncd7 {[%clk 0:01:19]} 25. Ba4 {[%clk 0:00:17]}  Qf8 {[%clk 0:01:08]} 26. Bxd7 {[%clk 0:00:11]}  Nxd7 {[%clk 0:01:08]} 27. Qe3 {[%clk 0:00:11]}  Qe8 {[%clk 0:01:07]} 28. Ngf5 {[%clk 0:00:09]}  gxf5 {[%clk 0:01:00]} 29. Nxf5 {[%clk 0:00:10]}  Nf8 {[%clk 0:00:44]} 30. Nxg7 {[%clk 0:00:09]}  Kxg7 {[%clk 0:00:45]} 31. Bf6+ {[%clk 0:00:10]}  Kg8 {[%clk 0:00:44]} 32. h4 {[%clk 0:00:09]}  Qg6 {[%clk 0:00:28]} 33. Rf3 {[%clk 0:00:08]}  Bg4 {[%clk 0:00:25]} 34. Rg3 {[%clk 0:00:08]}  h5 {[%clk 0:00:24]} 35. Rf1 {[%clk 0:00:08]}  Nh7 {[%clk 0:00:23]} 36. Rf5 {[%clk 0:00:08]}  Nxf6 {[%clk 0:00:22]} 37. Rg5 {[%clk 0:00:08]}  Qxg5 {[%clk 0:00:14]} 38. Qxg5+ {[%clk 0:00:09]}  Kf7 {[%clk 0:00:15]} 39. cxb4 {[%clk 0:00:09]}  Rxb4 {[%clk 0:00:15]} 40. Re3 {[%clk 0:00:10]}  Rg8 {[%clk 0:00:15]} 41. Re1 {[%clk 0:00:09]}  Rxg5 {[%clk 0:00:16]} 42. hxg5 {[%clk 0:00:09]}  Nh7 {[%clk 0:00:16]} 43. Rf1+ {[%clk 0:00:08]}  Kg6 {[%clk 0:00:16]} 0-1


[Site "https://www.chess.com"]